bitfinex-derivatives/quotes_BNBF0:USTF0_20250510
["timestamp","ask_amount","ask_price","bid_price","bid_amount"]
[1746863811939,0.24425825,664.55,663.08,0.494]
[1746863814941,0.24425825,664.54,663.08,0.494]
[1746863815242,0.30096912,664.52,663.08,0.494]
[1746863815840,0.24425825,664.51,663.08,0.494]
[1746863816243,0.24425825,664.5,663.08,0.494]
[1746863816642,0.24425825,664.49,663.08,0.494]
[1746863817037,0.24425825,664.48,663.08,0.494]
[1746863817243,0.24425825,664.47,663.08,0.494]
[1746863817439,0.30099629,664.46,663.08,0.494]
[1746863817738,0.54525454,664.46,663.08,0.494]
[1746863817940,0.24425825,664.45,663.08,0.494]
[1746863818242,0.24425825,664.44,663.08,0.494]
[1746863818638,0.24425825,664.43,663.08,0.494]
[1746863819144,0.24425825,664.42,663.08,0.494]
[1746863819442,0.24425825,664.41,663.08,0.494]
[1746863819643,1.96279585,664.37,663.08,0.494]
[1746863820241,0.24425825,664.36,663.08,0.494]
[1746863820544,0.24425825,664.35,663.08,0.494]
[1746863820845,0.24425825,664.36,663.08,0.494]
[1746863821445,1.96279585,664.37,663.08,0.494]
[1746863821843,0.24437326,664.36,663.08,0.494]
[1746863822147,0.50671778,664.36,663.08,0.494]
[1746863822347,0.26234452,664.36,663.08,0.494]
[1746863822748,0.24436946,664.35,663.08,0.494]
[1746863823247,0.26234452,664.36,663.08,0.494]
[1746863823549,0.24436988,664.34,663.08,0.494]
[1746863823846,0.24436988,664.33,663.08,0.494]
[1746863824351,0.24436988,664.32,663.08,0.494]
[1746863824648,0.24436988,664.31,663.08,0.494]
[1746863825048,0.24436988,664.3,663.08,0.494]
[1746863825449,0.24436988,664.34,663.08,0.494]
[1746863825848,0.24436988,664.33,663.08,0.494]
[1746863826248,0.24436988,664.32,663.08,0.494]
[1746863826548,0.24436988,664.34,663.08,0.494]
[1746863826945,0.26235539,664.31,663.08,0.494]
[1746863827347,0.24436988,664.3,663.08,0.494]
[1746863829848,0.26235737,664.29,663.08,0.494]
[1746863830344,0.24436988,664.28,663.08,0.494]
[1746863831946,0.30108692,664.26,663.08,0.494]
[1746863832346,0.24436988,664.25,663.08,0.494]
[1746863832545,0.24436988,664.25,662.78,0.363]
[1746863833446,0.24436988,664.24,662.78,0.363]
[1746863833851,0.24436988,664.23,662.78,0.363]
[1746863834251,0.24436988,664.22,662.78,0.363]
[1746863834547,0.24436988,664.21,662.78,0.363]
[1746863834954,0.24436988,664.2,662.78,0.363]
[1746863835351,0.24436988,664.19,662.78,0.363]
[1746863835746,0.24436988,664.18,662.78,0.363]
[1746863835947,0.24436988,664.17,662.78,0.363]
[1746863836152,0.30113225,664.16,662.79,0.586]
[1746863836352,0.24436988,664.15,662.79,0.586]
[1746863837850,0.24436988,664.14,662.79,0.586]
[1746863838351,0.24436988,664.13,662.79,0.586]
[1746863838555,0.24436988,664.12,662.79,0.586]
[1746863838952,0.24436988,664.11,662.79,0.586]
[1746863839253,0.24436988,664.15,662.79,0.586]
[1746863839855,0.24436988,664.14,662.79,0.586]
[1746863840151,0.24436988,664.14,662.79,0.8877547]
[1746863840355,0.24436988,664.13,662.79,0.8877547]
[1746863840555,0.24436988,664.15,662.79,0.8877547]
[1746863842151,0.26235045,664.14,662.79,0.8877547]
[1746863842556,0.24436988,664.13,662.79,0.8877547]
[1746863844961,0.26233858,664.12,662.79,0.8877547]
[1746863845259,0.24436988,664.11,662.79,0.8877547]
[1746863846355,0.24436988,664.11,662.8,0.365]
[1746863847859,0.24436988,664.15,662.8,0.365]
[1746863848060,0.26233858,664.1,662.8,0.365]
[1746863848356,0.24436988,664.09,662.8,0.365]
[1746863850763,0.26231683,664.08,662.8,0.365]
[1746863851265,0.24436988,664.07,662.8,0.365]
[1746863853867,0.26231683,664.06,662.8,0.365]
[1746863854368,0.24436988,664.05,662.8,0.365]
[1746863856869,0.24436988,664.15,662.8,0.365]
[1746863857070,0.26230497,664.04,662.8,0.365]
[1746863857261,0.24436988,664.15,662.8,0.365]
[1746863858563,0.26230299,664.14,662.8,0.365]
[1746863859069,0.24436988,664.13,662.8,0.365]
[1746863859966,0.26229706,664.12,662.8,0.365]
[1746863860370,0.24436988,664.11,662.8,0.365]
[1746863861267,0.26229706,664.12,662.8,0.365]
[1746863861668,0.24423064,664.11,662.8,0.365]
[1746863862967,0.26229508,664.1,662.8,0.365]
[1746863863363,0.24423064,664.09,662.79,0.3017547]
[1746863865672,0.24423064,664.09,662.8,0.558]
[1746863865876,0.30116853,664.08,662.8,0.558]
[1746863866168,0.24423064,664.07,662.81,0.342]
[1746863868774,0.26239298,664.06,662.81,0.342]
[1746863869475,0.24423064,664.05,662.81,0.342]
[1746863869676,0.24423064,664.04,662.81,0.342]
[1746863870075,0.30119121,664.03,662.81,0.342]
[1746863870275,0.54542185,664.03,662.81,0.342]
[1746863870573,0.24423064,664.02,662.81,0.342]
[1746863871670,0.30120028,664.01,662.81,0.342]
[1746863871979,0.24423064,664.0,662.81,0.342]
[1746863872178,0.30120935,663.99,662.81,0.342]
[1746863873780,0.24423064,663.98,662.81,0.342]
[1746863873971,0.30121842,663.97,662.81,0.342]
[1746863874171,0.24423064,663.96,662.81,0.342]
[1746863874376,0.3012275,663.95,662.81,0.342]
[1746863874879,0.24423064,663.94,662.81,0.342]
[1746863875077,0.30123657,663.93,662.81,0.342]
[1746863875579,0.24423064,663.92,662.81,0.342]
[1746863875879,0.30124565,663.91,662.81,0.342]
[1746863876880,0.24423064,663.9,662.81,0.342]
[1746863877480,0.24423064,663.89,662.81,0.342]
[1746863877675,0.3012638,663.87,662.81,0.342]
[1746863878180,0.24423064,663.86,662.81,0.342]
[1746863878682,0.30127741,663.84,662.81,0.342]
[1746863878978,0.24423064,663.83,662.81,0.342]
[1746863880483,0.30129103,663.81,662.81,0.342]
[1746863880879,0.24423064,663.8,662.81,0.342]
[1746863881078,0.50671763,663.8,662.81,0.342]
[1746863881285,0.24423064,663.79,662.81,0.342]
[1746863881487,0.30130464,663.78,662.81,0.342]
[1746863881988,0.24423064,663.77,662.81,0.342]
[1746863882384,0.30131372,663.76,662.81,0.342]
[1746863882787,0.24423064,663.75,662.81,0.342]
[1746863882989,0.3013228,663.74,662.81,0.342]
[1746863883589,0.24423064,663.73,662.81,0.342]
[1746863883791,0.30133642,663.71,662.81,0.342]
[1746863884489,0.24423064,663.7,662.81,0.342]
[1746863885192,0.24423064,663.69,662.81,0.342]
[1746863885492,0.24423064,663.68,662.81,0.342]
[1746863885893,0.24423064,663.67,662.81,0.342]
[1746863886192,0.24423064,663.66,662.81,0.342]
[1746863886590,0.24423064,663.65,662.81,0.342]
[1746863886891,0.24423064,663.64,662.81,0.342]
[1746863887294,0.24423064,663.63,662.81,0.342]
[1746863887594,0.24423064,663.62,662.81,0.342]
[1746863887795,0.50678496,663.62,662.81,0.342]
[1746863888494,0.24423064,663.61,662.81,0.342]
[1746863889195,0.24423064,663.6,662.81,0.342]
[1746863889796,0.24423064,663.59,662.81,0.342]
[1746863889988,0.50678496,663.59,662.81,0.342]
[1746863890295,0.24423064,663.58,662.81,0.342]
[1746863890489,0.26255432,663.59,662.81,0.342]
[1746863891096,0.24453122,663.58,662.81,0.342]
[1746863892996,0.2625464,663.57,662.81,0.342]
[1746863893295,0.24453122,663.56,662.81,0.342]
[1746863895795,0.26253253,663.55,662.81,0.342]
[1746863896301,0.24453122,663.54,662.81,0.342]
[1746863898802,0.24453122,663.7,662.81,0.342]
[1746863899106,0.24453122,663.69,662.81,0.342]
[1746863899305,0.26250877,663.53,662.81,0.342]
[1746863899605,0.24453122,663.68,662.81,0.342]
[1746863899804,0.50703999,663.52,662.81,0.342]
[1746863900005,0.24453122,663.51,662.81,0.342]
[1746863900305,0.50703999,663.51,662.81,0.342]
[1746863900503,0.26250877,663.51,662.81,0.342]
[1746863900698,0.24453122,663.5,662.81,0.342]
[1746863901507,0.26250877,663.51,662.81,0.342]
[1746863901707,0.30133642,663.71,662.81,0.342]
[1746863901908,0.24455482,663.5,662.81,0.342]
[1746863902102,0.50704775,663.5,662.81,0.342]
[1746863902302,0.24455482,663.7,662.81,0.342]
[1746863903110,0.26249293,663.69,662.81,0.342]
[1746863903811,0.24455482,663.68,662.81,0.342]
[1746863904811,0.24455482,663.7,662.81,0.342]
[1746863905006,0.26249293,663.67,662.81,0.342]
[1746863905710,0.24455482,663.66,662.81,0.342]
[1746863907813,0.26249293,663.65,662.81,0.342]
[1746863908614,0.24455482,663.64,662.81,0.342]
[1746863913015,0.26249293,663.65,662.81,0.342]
[1746863913317,0.24450198,663.64,662.81,0.342]
[1746863919227,0.26249293,663.65,662.81,0.342]
[1746863919623,0.24450298,663.64,662.81,0.342]
[1746863919923,0.24450298,663.7,662.81,0.342]
[1746863920124,0.26247313,663.63,662.81,0.342]
[1746863920724,0.24450298,663.62,662.81,0.342]
[1746863924827,0.26247313,663.63,662.81,0.342]
[1746863925427,0.24452978,663.62,662.81,0.342]
[1746863926028,0.26248204,663.61,662.81,0.816]
[1746863926627,0.24452978,663.6,662.81,0.816]
[1746863928927,0.24452978,663.7,662.81,0.816]
[1746863929133,0.26248006,663.59,662.81,0.816]
[1746863929432,0.24452978,663.7,662.81,0.816]
[1746863930131,0.26248006,663.69,662.81,0.816]
[1746863930333,0.24452978,663.68,662.81,0.816]
[1746863931933,0.24452978,663.7,662.81,0.816]
[1746863932134,0.26248798,663.67,662.81,0.816]
[1746863932535,0.24454741,663.66,662.81,0.816]
[1746863935938,0.24454741,663.65,662.81,0.816]
[1746863936237,0.24454741,663.64,662.81,0.816]
[1746863936734,0.24454741,663.63,662.81,0.816]
[1746863937134,0.24454741,663.66,662.81,0.816]
[1746863938140,0.24454741,663.65,662.81,0.816]
[1746863938441,0.24454741,663.65,662.81,0.474]
[1746863938641,0.24454741,663.64,662.81,0.474]
[1746863938840,0.24454741,663.63,662.81,0.474]
[1746863939137,0.24454741,663.62,662.81,0.474]
[1746863939742,0.24454741,663.61,662.81,0.474]
[1746863940442,0.24454741,663.6,662.81,0.474]
[1746863943650,0.24454741,663.6,662.81,0.474]
[1746863943846,0.24454741,663.59,662.81,0.474]
[1746863944044,0.24454741,663.7,662.81,0.474]
[1746863944950,0.2625157,663.69,662.81,0.474]
[1746863945649,0.24454741,663.68,662.81,0.474]
[1746863950049,0.26245136,663.67,662.81,0.474]
[1746863950752,0.24454741,663.66,662.81,0.474]
[1746863952755,0.24454741,664.36,662.81,0.474]
[1746863952951,0.26246521,663.65,662.81,0.474]
[1746863953355,0.24454741,663.64,662.81,0.474]
[1746863953555,0.24454741,664.33,662.81,0.474]
[1746863953860,0.24454741,664.32,662.81,0.474]
[1746863954352,0.50701559,664.31,662.81,0.474]
[1746863954658,0.24454741,664.3,662.81,0.474]
[1746863954955,0.24454741,664.29,662.81,0.474]
[1746863955156,0.24454741,664.28,662.81,0.474]
[1746863955457,0.24454741,664.27,662.81,0.474]
[1746863955653,0.24454741,664.26,662.81,0.474]
[1746863955953,0.24454741,664.25,662.81,0.474]
[1746863956257,0.24454741,664.24,662.81,0.474]
[1746863956451,0.24454741,664.23,662.81,0.474]
[1746863956756,0.24454741,664.22,662.81,0.474]
[1746863957057,0.24454741,664.21,662.81,0.474]
[1746863957259,0.24454741,664.2,662.81,0.812]
[1746863957558,0.24454741,664.19,662.81,0.812]
[1746863957857,0.24454741,664.18,662.81,0.812]
[1746863958058,0.24454741,664.17,662.81,0.812]
[1746863958251,0.24454741,664.16,662.81,0.812]
[1746863958558,0.24454741,664.15,662.81,0.812]
[1746863958758,0.24454741,664.14,662.81,0.812]
[1746863959058,0.24454741,664.13,662.81,0.812]
[1746863959352,0.24454741,664.12,662.81,0.812]
[1746863959557,0.24454741,664.11,662.81,0.812]
[1746863959757,0.24454741,664.1,662.81,0.812]
[1746863960058,0.30116853,664.08,662.81,0.812]
[1746863960258,0.24454741,664.07,662.81,0.812]
[1746863960451,0.24454741,664.06,662.81,0.812]
[1746863960758,0.30116853,664.08,662.81,0.812]
[1746863961058,0.24453221,664.07,662.81,0.812]
[1746863961251,0.24453221,664.06,662.81,0.812]
[1746863961559,0.24453221,664.05,662.81,0.812]
[1746863961752,0.24453221,664.04,662.81,0.812]
[1746863962058,0.24453221,664.03,662.81,0.812]
[1746863962258,0.30116853,664.08,662.81,0.812]
[1746863962259,0.24453221,664.02,662.81,0.812]
[1746863962654,0.24453221,664.01,662.81,0.812]
[1746863963057,0.24453221,664.0,662.81,0.812]
[1746863963255,0.30116853,664.08,662.81,0.812]
[1746863963256,0.24453221,663.99,662.81,0.812]
[1746863963559,0.24453221,663.98,662.81,0.812]
[1746863963755,0.24453221,663.97,662.81,0.812]
[1746863963960,0.24453221,663.96,662.81,0.812]
[1746863964155,0.24453221,663.95,662.81,0.812]
[1746863964459,0.24453221,663.94,662.81,0.812]
[1746863964659,0.24453221,663.93,662.81,0.812]
[1746863964960,0.24453221,663.92,662.81,0.812]
[1746863965155,0.24453221,663.91,662.81,0.812]
[1746863965461,0.24453221,663.9,662.81,0.812]
[1746863965660,0.24453221,663.89,662.81,0.812]
[1746863965959,0.24453221,663.88,662.81,0.812]
[1746863966159,0.30116853,664.08,662.81,0.812]
[1746863966160,0.24453221,663.87,662.81,0.812]
[1746863966361,0.24453221,663.86,662.81,0.338]
[1746863966660,0.30116853,664.08,662.81,0.338]
[1746863966661,0.24453221,663.85,662.81,0.338]
[1746863966960,0.24453221,663.84,662.81,0.338]
[1746863967157,0.24453221,663.83,662.81,0.338]
[1746863967456,0.24453221,664.07,662.81,0.338]
[1746863967661,0.24453221,663.82,662.81,0.338]
[1746863967861,0.24453221,664.07,662.81,0.338]
[1746863968762,0.24453221,664.06,662.81,0.338]
[1746863968955,0.24453221,664.05,662.81,0.338]
[1746863969159,0.24453221,664.07,662.81,0.338]
[1746863969462,0.24453221,664.06,662.81,0.338]
[1746863969660,0.24453221,664.05,662.81,0.338]
[1746863969961,0.24453221,664.04,662.81,0.338]
[1746863970163,0.24453221,664.03,662.81,0.338]
[1746863970362,0.24453221,664.02,662.81,0.338]
[1746863970563,0.30116853,664.08,662.81,0.338]
[1746863970564,0.24453221,664.01,662.81,0.338]
[1746863970864,0.24453221,664.0,662.81,0.338]
[1746863971089,0.30121389,663.98,662.81,0.338]
[1746863971264,0.24453221,663.97,662.81,0.338]
[1746863971562,0.24453221,663.96,662.81,0.338]
[1746863971762,0.24453221,663.95,662.81,0.338]
[1746863971960,0.24453221,663.94,662.81,0.338]
[1746863972463,0.24453221,663.93,662.81,0.338]
[1746863972657,0.24453221,663.92,662.81,0.338]
[1746863973063,0.24453221,663.91,662.81,0.338]
[1746863973363,0.24453221,663.9,662.81,0.338]
[1746863973659,0.24453221,663.89,662.81,0.338]
[1746863973865,0.24453221,663.88,662.81,0.338]
[1746863974164,0.24453221,663.87,662.81,0.338]
[1746863974564,0.24453221,663.86,662.81,0.338]
[1746863974864,0.24453221,663.85,662.81,0.338]
[1746863975065,0.24453221,663.84,662.81,0.338]
[1746863975264,0.24453221,663.83,662.81,0.338]
[1746863975466,0.24453221,663.82,662.81,0.338]
[1746863975767,1.96279585,663.65,662.81,0.338]
[1746863975967,0.24453221,663.64,662.81,0.338]
[1746863976159,0.24453221,663.63,662.81,0.338]
[1746863976364,0.24453221,663.62,662.81,0.338]
[1746863976563,0.24453221,663.61,662.81,0.338]
[1746863976864,1.96279585,663.65,662.81,0.338]
[1746863977166,0.24472289,663.64,662.81,0.338]
[1746863977466,0.24472289,663.63,662.81,0.338]
[1746863977865,0.24472289,663.62,662.81,0.338]
[1746863978462,0.24472289,663.61,662.81,0.338]
[1746863978662,0.54610926,663.6,662.81,0.338]
[1746863979167,0.24472289,663.59,662.81,0.338]
[1746863979667,0.24472289,663.58,662.81,0.338]
[1746863980061,0.24472289,663.57,662.81,0.338]
[1746863980366,0.24472289,663.56,662.81,0.338]
[1746863981067,0.24472289,663.55,662.81,0.338]
[1746863981362,0.24472289,663.54,662.81,0.338]
[1746863981766,0.24472289,663.53,662.81,0.338]
[1746863982263,0.24472289,663.52,662.81,0.338]
[1746863983067,0.24472289,663.51,662.81,0.338]
[1746863983469,0.24472289,663.5,662.81,0.338]
[1746863983769,0.54615923,663.49,662.81,0.338]
[1746863984064,0.24472289,663.48,662.81,0.338]
[1746863984570,0.24472289,663.47,662.81,0.338]
[1746863984969,0.24472289,663.46,662.81,0.338]
[1746863985169,0.24472289,663.45,662.81,0.338]
[1746863985469,0.24472289,663.44,662.81,0.338]
[1746863985770,0.30143634,663.49,662.81,0.338]
[1746863986070,0.24475544,663.48,662.81,0.338]
[1746863986464,0.30143634,663.49,662.81,0.338]
[1746863986465,0.24475544,663.47,662.81,0.338]
[1746863986870,0.24475544,663.46,662.81,0.338]
[1746863987173,0.24475544,663.45,662.81,0.338]
[1746863987471,0.24475544,663.44,662.81,0.338]
[1746863987771,0.24475544,663.43,662.81,0.338]
[1746863988568,0.24475544,663.42,662.81,0.338]
[1746863989166,0.24475544,663.41,660.44,0.95247697]
[1746863989366,0.24475544,663.41,660.58,0.30276423]
[1746863989570,0.24475544,663.4,660.58,0.30276423]
[1746863989871,0.24475544,663.39,660.59,0.67658629]
[1746863990368,0.24475544,663.38,660.6,0.27758629]
[1746863990766,0.24475544,663.37,660.61,0.27758629]
[1746863991170,0.24475544,663.36,660.62,0.27758629]
[1746863991366,0.24475544,663.35,660.63,0.27758629]
[1746863991570,0.24475544,663.35,660.63,0.67658629]
[1746863991870,0.24475544,663.34,660.64,0.27758629]
[1746863992173,0.24475544,663.33,660.65,0.27758629]
[1746863992473,0.24475544,663.33,660.66,0.27758629]
[1746863992667,0.24475544,663.32,660.66,0.27758629]
[1746863992971,0.24475544,663.31,660.67,0.27758629]
[1746863993273,0.24475544,663.3,660.68,0.27758629]
[1746863993571,0.24475544,663.29,660.69,0.27758629]
[1746863994071,0.24475544,663.28,660.7,0.27758629]
[1746863994372,0.24475544,663.27,660.71,0.27758629]
[1746863994666,0.30143634,663.49,660.72,0.27758629]
[1746863994667,0.24475544,663.26,660.72,0.27758629]
[1746863995273,0.24475544,663.25,660.73,0.27758629]
[1746863995672,0.24475544,663.24,660.74,0.27758629]
[1746863996072,0.24475544,663.23,660.75,0.27758629]
[1746863996372,0.24475544,663.22,660.76,0.27758629]
[1746863996672,0.24475544,663.21,660.77,0.27758629]
[1746863997072,0.30143634,663.49,660.78,0.27758629]
[1746863997073,0.24475544,663.2,660.78,0.27758629]
[1746863997469,0.30143634,663.49,660.63,0.399]
[1746863997672,0.24476864,663.48,660.64,0.27758666]
[1746863997875,0.24476864,663.48,660.77,0.30267717]
[1746863998068,0.24476864,663.47,660.77,0.30267717]
[1746863998374,0.24476864,663.46,660.78,0.27758666]
[1746863998769,0.24476864,663.45,660.79,0.27758666]
[1746863999174,0.24476864,663.44,660.8,0.27758666]
[1746863999574,0.24476864,663.43,660.78,0.27758666]
[1746863999875,0.24476864,663.42,660.78,0.27758666]
[1746864000275,0.30143634,663.49,660.77,0.30267717]
[1746864006978,0.2447546,663.48,660.78,0.70660821]
[1746864007980,0.30143634,663.49,660.78,0.429]
[1746864008282,0.30143634,663.49,660.79,0.27771137]
[1746864008476,0.24469017,663.48,660.79,0.27771137]
[1746864008674,0.24469017,663.47,660.79,0.27771137]
[1746864008981,0.24469017,663.46,660.79,0.27771137]
[1746864009281,0.24469017,663.45,660.79,0.27771137]
[1746864009477,0.24469017,663.44,660.79,0.27771137]
[1746864009779,0.24469017,663.43,660.79,0.27771137]
[1746864010282,0.24469017,663.42,660.79,0.27771137]
[1746864011381,0.24469017,663.41,660.79,0.27771137]
[1746864011683,0.24469017,663.4,660.79,0.2724625]
[1746864011982,0.24469017,663.39,660.79,0.2724625]
[1746864012385,0.24469017,663.38,660.79,0.2724625]
[1746864012682,0.24469017,663.37,660.79,0.2724625]
[1746864012884,0.24469017,663.36,660.79,0.2724625]
[1746864013284,0.24469017,663.35,660.79,0.2724625]
[1746864013480,1.95432511,662.97,660.79,0.2724625]
[1746864014284,0.24469017,662.96,660.79,0.2724625]
[1746864015086,0.24469017,662.95,660.79,0.2724625]
[1746864015385,1.95432511,662.97,660.78,0.429]
[1746864015881,0.24461404,662.96,660.79,0.27769937]
[1746864017191,0.24461404,663.1,660.79,0.27769937]
[1746864017691,0.24461404,663.09,660.79,0.27769937]
[1746864018192,0.24461404,663.08,660.79,0.27769937]
[1746864018490,0.24461404,663.07,660.79,0.27769937]
[1746864018888,1.95432511,663.11,660.79,0.27769937]
[1746864018889,0.24461404,663.06,660.79,0.27769937]
[1746864019091,0.24461404,663.05,660.79,0.27769937]
[1746864019588,0.24461404,663.04,660.79,0.27769937]
[1746864019992,0.24461404,663.03,660.79,0.27769937]
[1746864020292,0.24461404,663.02,660.79,0.27769937]
[1746864021192,0.24461404,663.01,660.79,0.27769937]
[1746864021787,0.24461404,663.0,660.79,0.27769937]
[1746864022292,0.24461404,662.99,660.79,0.27769937]
[1746864022593,0.24461404,662.98,660.79,0.27769937]
[1746864022994,0.24461404,662.97,660.79,0.27769937]
[1746864023393,1.95432511,663.17,660.79,0.27769937]
[1746864023394,0.24461404,662.96,660.79,0.27769937]
[1746864023993,0.24461404,663.16,660.79,0.27769937]
[1746864024194,0.24461404,662.95,660.79,0.27769937]
[1746864024495,0.24461404,663.15,660.79,0.27769937]
[1746864024795,0.24461404,663.14,660.79,0.27769937]
[1746864025395,0.24461404,663.13,660.79,0.27769937]
[1746864025797,0.24461404,663.12,660.79,0.27769937]
[1746864026091,0.24461404,663.11,660.79,0.27769937]
[1746864026391,0.24461404,663.1,660.79,0.27769937]
[1746864026596,0.24461404,663.09,660.79,0.27769937]
[1746864026897,0.24461404,663.08,660.79,0.27769937]
[1746864027298,0.24461404,663.07,660.79,0.27769937]
[1746864027493,0.24461404,663.06,660.79,0.27769937]
[1746864027798,0.24461404,663.05,660.79,0.27769937]
[1746864028000,0.24461404,663.04,660.79,0.27769937]
[1746864028300,0.24461404,663.03,660.79,0.27769937]
[1746864028597,0.24461404,663.02,660.79,0.27769937]
[1746864028900,0.24461404,663.01,660.79,0.27769937]
[1746864029202,0.24461404,663.0,660.79,0.27769937]
[1746864029501,0.24461404,662.99,660.79,0.27769937]
[1746864029898,0.24461404,662.98,660.79,0.27769937]
[1746864030103,0.24461404,663.17,660.79,0.27769937]
[1746864030702,0.24461404,663.17,660.8,0.345]
[1746864031003,0.24461404,663.17,660.81,0.27769937]
[1746864031703,0.24461404,663.16,660.81,0.27769937]
[1746864032204,0.24461404,663.15,660.82,0.27769937]
[1746864032403,0.24461404,663.14,660.83,0.27769937]
[1746864032805,0.30143634,663.49,660.8,0.345]
[1746864033100,0.24467751,663.48,660.81,0.27761849]
[1746864033401,0.24467751,663.47,660.82,0.27761849]
[1746864033707,0.30143634,663.49,660.8,0.345]
[1746864034009,0.24468941,663.48,660.81,0.27760362]
[1746864034210,1.95432511,662.98,660.81,0.27760362]
[1746864034410,0.24468941,662.97,660.82,0.27760362]
[1746864034808,0.24468941,662.97,660.8,0.345]
[1746864034809,0.24468941,662.96,660.83,0.27760362]
[1746864035108,0.24468941,662.96,660.84,0.27760362]
[1746864035308,0.24468941,662.95,660.84,0.27760362]
[1746864035608,1.95432511,662.98,660.8,0.345]
[1746864035808,0.24469955,662.94,660.85,0.27758817]
[1746864036008,0.24469955,662.97,660.81,0.27758817]
[1746864036710,0.24469955,662.97,660.82,0.27758817]
[1746864037511,0.24469955,662.97,660.83,0.27758817]
[1746864037711,0.24469955,663.04,660.84,0.27758817]
[1746864037915,0.24469955,663.04,660.85,0.27758817]
[1746864038213,0.24469955,663.04,660.81,0.27758817]
[1746864040010,0.24469955,663.48,660.81,0.27758817]
[1746864048713,0.24469955,663.47,660.82,0.27758817]
[1746864048912,0.24469955,663.46,660.83,0.27758817]
[1746864049214,0.24469955,663.48,660.81,0.27758817]
[1746864049518,0.24469955,663.48,660.82,0.27758817]
[1746864050117,0.24469955,663.48,660.83,0.27758817]
[1746864050412,0.24469955,663.48,660.84,0.27758817]
[1746864051019,0.24469955,663.48,660.81,0.27758817]
[1746864051518,0.24469955,663.48,660.82,0.27758817]
[1746864051917,0.24469955,663.48,660.83,0.27758817]
[1746864052417,0.24469955,663.48,660.84,0.27758817]
[1746864052819,0.30143634,663.49,660.8,0.345]
[1746864053219,0.24467077,663.48,660.81,0.27748777]
[1746864054021,0.24467077,663.48,660.82,0.27748777]
[1746864054322,0.24467077,663.48,660.83,0.27748777]
[1746864054814,0.24467077,663.48,660.84,0.27748777]
[1746864055319,0.24467077,663.48,660.8,0.345]
[1746864055320,0.24467077,663.47,660.85,0.27748777]
[1746864055819,0.24467077,663.47,660.88,0.95707123]
[1746864056013,0.24467077,663.46,660.88,0.95707123]
[1746864056218,0.24467077,663.45,660.89,0.27748777]
[1746864056519,0.24467077,663.44,660.9,0.27748777]
[1746864056820,0.24467077,663.43,660.91,0.27748777]
[1746864057319,0.24467077,663.42,660.92,0.27748777]
[1746864057519,0.30143634,663.49,660.88,0.95707123]
[1746864057819,0.30143634,663.49,660.89,0.27745587]
[1746864058020,0.24463916,663.48,660.89,0.27745587]
[1746864058419,0.24463916,663.48,660.9,0.27745587]
[1746864058820,0.24463916,663.47,660.91,0.27745587]
[1746864059224,0.24463916,663.46,660.92,0.27745587]
[1746864059622,0.30143634,663.49,660.93,0.27745587]
[1746864059623,0.24463916,663.45,660.93,0.27745587]
[1746864059922,0.24463916,663.44,660.94,0.27745587]
[1746864060320,0.24463916,663.43,660.95,0.27745587]
[1746864060622,0.24463916,663.48,660.96,0.27745587]
[1746864061017,0.24463916,663.48,660.97,0.27745587]
[1746864061523,0.24463916,663.48,660.98,0.27745587]
[1746864061923,0.24463916,663.48,660.99,0.27745587]
[1746864062321,0.24463916,663.47,661.0,0.27745587]
[1746864062622,0.24463916,663.48,661.01,0.27745587]
[1746864062823,0.24463916,663.47,661.02,0.27745587]
[1746864063324,0.24463916,663.47,660.8,0.345]
[1746864063325,0.24463916,663.48,661.03,0.27745587]
[1746864063519,0.24463916,663.46,661.03,0.27745587]
[1746864063923,0.24463916,663.48,660.81,0.27745587]
[1746864064318,0.24463916,663.47,660.82,0.27745587]
[1746864064819,0.24463916,663.48,660.83,0.27745587]
[1746864065022,0.24463916,663.46,660.83,0.27745587]
[1746864065218,0.24463916,663.45,660.84,0.27745587]
[1746864065626,0.24463916,663.44,660.85,0.27745587]
[1746864065923,0.24463916,663.43,660.86,0.27745587]
[1746864066220,0.24463916,663.42,660.87,0.27745587]
[1746864066619,0.24463916,663.41,660.88,0.27745587]